bitfinex-derivatives/quotes_BTCF0:USTF0_20210705
["timestamp","ask_amount","ask_price","bid_price","bid_amount"]
[1625467320624,0.63442544,34284.0,34283.0,9.96150622]
[1625467322732,0.63442544,34284.0,34283.0,9.91850622]
[1625467322832,0.63442544,34284.0,34283.0,9.83980622]
[1625467323236,2.15661667,34284.0,34283.0,9.83980622]
[1625467323486,6.35091667,34284.0,34283.0,9.83980622]
[1625467324935,6.86441874,34284.0,34283.0,9.83980622]
[1625467325137,6.86441874,34284.0,34283.0,9.75150622]
[1625467325236,6.85091667,34284.0,34283.0,9.75150622]
[1625467325334,8.03344943,34284.0,34283.0,9.75150622]
[1625467325737,8.04695166,34284.0,34283.0,9.75150622]
[1625467325935,8.04695166,34284.0,34283.0,9.56150622]
[1625467326137,8.04695166,34284.0,34283.0,9.54560622]
[1625467327388,8.03344943,34284.0,34283.0,9.54560622]
[1625467327690,8.04695166,34284.0,34283.0,9.54560622]
[1625467328340,9.39801287,34284.0,34283.0,9.54560622]
[1625467328793,9.39801287,34284.0,34283.0,9.45840622]
[1625467328994,9.38451064,34284.0,34283.0,9.45840622]
[1625467329093,9.38451064,34284.0,34283.0,9.41520622]
[1625467329246,9.39801267,34284.0,34283.0,9.41520622]
[1625467330093,9.38451064,34284.0,34283.0,9.41520622]
[1625467330196,9.38451064,34284.0,34283.0,9.38490622]
[1625467330296,9.39801294,34284.0,34283.0,9.38490622]
[1625467330847,9.39801294,34284.0,34283.0,9.3802]
[1625467331050,9.39801294,34284.0,34283.0,9.2915]
[1625467331147,9.38451064,34284.0,34283.0,9.2915]
[1625467331397,9.39801302,34284.0,34283.0,9.2915]
[1625467331597,9.39801302,34284.0,34283.0,9.2325]
[1625467332700,10.9155323,34284.0,34283.0,9.2325]
[1625467333051,10.9155323,34284.0,34283.0,9.145]
[1625467333610,9.39801302,34284.0,34283.0,9.145]
[1625467334404,10.91723479,34284.0,34283.0,9.145]
[1625467336223,10.91723479,34284.0,34283.0,9.074]
[1625467336657,10.91723479,34284.0,34283.0,9.0308]
[1625467337007,10.91723479,34284.0,34283.0,9.0116]
[1625467337407,10.91723479,34284.0,34283.0,8.8216]
[1625467337507,10.91723479,34284.0,34283.0,8.8166]
[1625467338210,10.91723479,34284.0,34283.0,8.7293]
[1625467338310,10.91723479,34284.0,34283.0,8.6623]
[1625467340362,6.72293479,34284.0,34283.0,8.6623]
[1625467340562,6.72293479,34284.0,34283.0,8.5755]
[1625467342368,8.41869496,34284.0,34283.0,8.5755]
[1625467342869,8.41869496,34284.0,34283.0,8.5722]
[1625467343670,6.72293479,34284.0,34283.0,8.5722]
[1625467344622,8.41932813,34284.0,34283.0,8.5722]
[1625467345277,8.41932813,34284.0,34283.0,8.4855]
[1625467347038,8.41932813,34284.0,34283.0,8.4572]
[1625467348039,8.41932813,34284.0,34283.0,8.4164]
[1625467348140,8.36032813,34284.0,34283.0,8.4164]
[1625467348241,8.41932813,34284.0,34283.0,8.3574]
[1625467349291,8.41932813,34284.0,34283.0,8.3463]
[1625467349642,8.41932813,34284.0,34283.0,8.3433]
[1625467349742,8.41932813,34284.0,34283.0,8.3037]
[1625467351094,8.41932813,34284.0,34283.0,8.2737]
[1625467353849,8.41932813,34284.0,34283.0,8.2637]
[1625467354651,8.41932813,34284.0,34283.0,8.2337]
[1625467356208,8.41932813,34284.0,34283.0,8.1926]
[1625467357811,8.41932813,34284.0,34283.0,8.1823]
[1625467358615,8.41932813,34284.0,34283.0,8.1243]
[1625467358915,9.09917861,34284.0,34283.0,8.1243]
[1625467360917,9.09917861,34284.0,34283.0,8.0388]
[1625467361017,9.09917861,34284.0,34283.0,7.9908]
[1625467361418,9.09917861,34284.0,34283.0,7.9548]
[1625467363022,9.09917861,34284.0,34283.0,7.8679]
[1625467365677,9.09917861,34284.0,34283.0,7.7803]
[1625467366679,8.59917861,34284.0,34283.0,7.7803]
[1625467367231,8.59917861,34284.0,34283.0,7.78500663]
[1625467368639,8.59917861,34284.0,34283.0,7.75670663]
[1625467374949,8.59917861,34284.0,34283.0,7.74400663]
[1625467375056,8.59917861,34284.0,34283.0,7.71550663]
[1625467375150,8.59917861,34284.0,34283.0,7.68810663]
[1625467375750,8.59917861,34284.0,34283.0,7.6834]
[1625467375851,8.59917861,34284.0,34283.0,7.64]
[1625467381066,8.32332861,34284.0,34283.0,7.89834]
[1625467381287,8.26432861,34284.0,34283.0,7.90304598]
[1625467381375,8.20532861,34284.0,34283.0,7.90304598]
[1625467381464,4.30736827,34284.0,34283.0,7.90304598]
[1625467381564,4.29386589,34284.0,34283.0,11.82994598]
[1625467381764,4.29386589,34284.0,34283.0,11.88894598]
[1625467381966,0.29356589,34284.0,34283.0,11.88894598]
[1625467382167,0.29356589,34284.0,34283.0,12.63803476]
[1625467382269,0.004,34286.0,34283.0,12.63803476]
[1625467382568,0.004,34286.0,34284.0,0.00470397]
[1625467382667,0.004,34286.0,34284.0,0.06370397]
[1625467382818,0.004,34286.0,34284.0,0.12270397]
[1625467382923,0.004,34286.0,34285.0,0.72172632]
[1625467383025,0.004,34286.0,34285.0,0.78072632]
[1625467383121,0.004,34286.0,34285.0,0.84443029]
[1625467383670,0.004,34286.0,34285.0,0.85307139]
[1625467384021,0.008,34290.0,34285.0,0.85307139]
[1625467384123,0.08580636,34290.0,34285.0,0.85307139]
[1625467384222,0.01,34292.0,34285.0,0.85307139]
[1625467384523,0.01,34292.0,34286.0,0.01334376]
[1625467384624,0.01,34292.0,34286.0,0.07234376]
[1625467384723,0.01,34292.0,34286.0,0.13134376]
[1625467384925,0.01,34292.0,34291.0,0.48115088]
[1625467385027,0.01,34292.0,34291.0,0.76537088]
[1625467385124,0.01,34292.0,34291.0,0.88337088]
[1625467385325,0.01,34292.0,34291.0,0.88807362]
[1625467386327,0.008,34292.0,34291.0,0.88407362]
[1625467387279,0.008,34292.0,34291.0,0.87937088]
[1625467389232,0.008,34292.0,34291.0,0.86937088]
[1625467390789,0.008,34292.0,34291.0,0.52615088]
[1625467390889,0.008,34292.0,34285.0,0.29757544]
[1625467390991,0.24057544,34286.0,34285.0,0.29957544]
[1625467391091,0.47160544,34286.0,34285.0,0.29957544]
[1625467391189,0.47160544,34286.0,34285.0,0.24057544]
[1625467392089,0.47160544,34286.0,34285.0,0.34057544]
[1625467393041,0.71218088,34286.0,34285.0,0.34057544]
[1625467395095,0.71218088,34286.0,34285.0,0.1]
[1625467398402,0.71218088,34286.0,34285.0,0.159]
[1625467398502,0.48115088,34286.0,34285.0,0.159]
[1625467400455,0.48115088,34286.0,34285.0,0.40874485]
[1625467401106,0.24057544,34286.0,34285.0,0.64932029]
[1625467401711,0.24057544,34286.0,34285.0,1.85015184]
[1625467402360,0.24057544,34286.0,34285.0,1.90915184]
[1625467402912,0.24057544,34286.0,34285.0,1.85015184]
[1625467403214,0.24057544,34286.0,34285.0,0.64932029]
[1625467403317,0.24057544,34286.0,34285.0,0.40428029]
[1625467403813,0.24057544,34286.0,34285.0,0.46328029]
[1625467405367,0.004,34291.0,34285.0,0.67299029]
[1625467405581,0.10492954,34294.0,34285.0,0.67299029]
[1625467405770,0.10492954,34294.0,34286.0,0.00470394]
[1625467405873,0.10492954,34294.0,34286.0,0.06370394]
[1625467405971,0.10492954,34294.0,34286.0,0.12270394]
[1625467406070,0.10492954,34294.0,34292.0,1.19858348]
[1625467406171,0.10492954,34294.0,34292.0,1.62036348]
[1625467406572,0.10492954,34294.0,34293.0,1.30303974]
[1625467406671,0.10492954,34294.0,34293.0,1.42103974]
[1625467406971,0.10492954,34294.0,34293.0,1.32103974]
[1625467407122,0.008,34295.0,34293.0,1.80219062]
[1625467407326,0.006,34294.0,34293.0,1.80219062]
[1625467407822,0.006,34294.0,34293.0,0.60385449]
[1625467408376,0.006,34294.0,34293.0,1.80125129]
[1625467410030,0.006,34294.0,34293.0,0.60385449]
[1625467410280,0.006,34295.0,34293.0,0.60385449]
[1625467410530,0.006,34295.0,34294.0,0.00470485]
[1625467410629,0.006,34295.0,34294.0,0.12270485]
[1625467413287,1.18857544,34301.0,34294.0,0.11870485]
[1625467413742,1.18857544,34301.0,34295.0,0.00470724]
[1625467413838,1.18857544,34301.0,34295.0,0.46443643]
[1625467414238,1.18857544,34301.0,34296.0,0.00470728]
[1625467414338,1.18857544,34301.0,34296.0,0.12270728]
[1625467414789,1.18857544,34301.0,34297.0,0.00470728]
[1625467414888,1.18857544,34301.0,34297.0,0.12270728]
[1625467415189,1.18857544,34301.0,34297.0,0.36328272]
[1625467415491,1.18857544,34301.0,34297.0,0.30428272]
[1625467415590,1.18857544,34301.0,34297.0,0.00470728]
[1625467415690,0.29957544,34298.0,34297.0,0.00470728]
[1625467415813,0.29957544,34298.0,34293.0,0.82331421]
[1625467415905,0.63544544,34298.0,34293.0,0.88231421]
[1625467416012,5.061,34295.0,34293.0,0.88231421]
[1625467416095,5.061,34295.0,34294.0,0.00470797]
[1625467416195,5.061,34295.0,34294.0,0.06370797]
[1625467416313,5.061,34295.0,34294.0,0.06570797]
[1625467416517,5.061,34295.0,34294.0,0.00670797]
[1625467416617,0.91897022,34298.0,34294.0,0.002]
[1625467416796,0.97797022,34298.0,34294.0,0.002]
[1625467417248,0.24057544,34295.0,34294.0,0.002]
[1625467417349,0.58282056,34295.0,34294.0,0.002]
[1625467419000,0.58282056,34295.0,34294.0,0.00670811]
[1625467419300,0.58282056,34295.0,34294.0,0.002]
[1625467419500,0.24057544,34295.0,34294.0,0.002]
[1625467419951,0.24057544,34295.0,34294.0,0.061]
[1625467420259,0.24057544,34295.0,34294.0,0.002]
[1625467420611,0.24057544,34295.0,34294.0,0.00670835]
[1625467420905,0.24057544,34295.0,34294.0,0.06570835]
[1625467421006,0.24057544,34295.0,34294.0,0.00670835]
[1625467421108,0.24057544,34295.0,34294.0,0.06570835]
[1625467425567,0.58304989,34295.0,34294.0,0.06570835]
[1625467425667,0.83858989,34295.0,34294.0,0.06570835]
[1625467426772,0.49611544,34295.0,34294.0,0.06570835]
[1625467427822,0.24057544,34295.0,34294.0,0.06570835]
[1625467430275,0.58352638,34295.0,34294.0,0.06570835]
[1625467430924,0.58352638,34295.0,34294.0,0.12470835]
[1625467431025,0.58352638,34295.0,34294.0,0.35237835]
[1625467431678,0.24057544,34295.0,34294.0,2.5816683]
[1625467432229,0.24057544,34295.0,34294.0,3.953194]
[1625467432729,0.9012,34299.0,34294.0,3.953194]
[1625467433229,0.9012,34299.0,34295.0,0.00470641]
[1625467433330,0.9012,34299.0,34298.0,0.29957544]
[1625467433430,0.9012,34299.0,34298.0,0.35857544]
[1625467433783,0.9012,34299.0,34298.0,0.3632818]
[1625467433881,0.9012,34299.0,34298.0,5.60096378]
[1625467434940,0.9012,34299.0,34298.0,4.5723818]
[1625467435585,0.9012,34299.0,34298.0,0.3632818]
[1625467435785,0.9012,34299.0,34298.0,1.39269257]
[1625467437490,1.07318651,34299.0,34298.0,1.39269257]
[1625467437991,1.41698971,34299.0,34298.0,1.39269257]
[1625467438296,1.41698971,34299.0,34298.0,5.73629257]
[1625467438393,1.07318651,34299.0,34298.0,5.73629257]
[1625467438946,1.41698893,34299.0,34298.0,5.73629257]
[1625467439549,0.9012,34299.0,34298.0,6.93887152]
[1625467440000,0.9012,34299.0,34298.0,2.59527152]
[1625467441400,1.24532285,34299.0,34298.0,2.59527152]
[1625467441652,1.24532285,34299.0,34298.0,6.90477152]
[1625467441850,0.9012,34299.0,34298.0,6.90477152]
[1625467442602,0.9012,34299.0,34298.0,7.59191758]
[1625467444358,0.9012,34299.0,34298.0,3.28241758]
[1625467445013,1.58924574,34299.0,34298.0,2.07983863]
[1625467445361,1.82982118,34299.0,34298.0,2.07983863]
[1625467445461,2.86184027,34299.0,34298.0,1.05042786]
[1625467445813,2.86184027,34299.0,34298.0,0.99142786]
[1625467446914,2.86184027,34299.0,34298.0,0.93242786]
[1625467447017,2.86184027,34299.0,34298.0,0.75974256]
[1625467447018,4.06588488,34299.0,34298.0,0.75974256]
[1625467447265,4.06588488,34299.0,34298.0,0.76174256]
[1625467447416,5.44198388,34299.0,34298.0,0.2472818]
[1625467448922,5.44198388,34299.0,34298.0,0.00670636]
[1625467449523,5.53058388,34299.0,34298.0,0.00670636]
[1625467450076,5.44198388,34299.0,34298.0,0.00670636]
[1625467450976,4.06588488,34299.0,34298.0,0.00670636]
[1625467452427,5.44213713,34299.0,34298.0,0.00670636]
[1625467452781,5.44213713,34299.0,34298.0,0.06570636]
[1625467453331,4.06588488,34299.0,34298.0,0.06570636]
[1625467453782,5.44253197,34299.0,34298.0,0.23661812]
[1625467454289,4.06588488,34299.0,34298.0,0.57828106]
[1625467454384,4.06588488,34299.0,34298.0,0.83426106]
[1625467454684,4.06588488,34299.0,34298.0,0.6633493]
[1625467455085,4.06588488,34299.0,34298.0,1.00472715]
[1625467455186,4.06588488,34299.0,34298.0,4.70912715]
[1625467455437,4.06588488,34299.0,34298.0,4.94970259]
[1625467455890,4.06588488,34299.0,34298.0,5.97457863]
[1625467459246,1.82982118,34299.0,34298.0,7.1705001]
[1625467459646,1.82982118,34299.0,34298.0,7.2295001]
[1625467459748,1.82982118,34299.0,34298.0,8.59672381]
[1625467460349,1.48646675,34299.0,34298.0,8.59672381]
[1625467460806,1.65887853,34299.0,34298.0,8.59672381]
[1625467461300,1.48646675,34299.0,34298.0,8.59672381]
[1625467462105,1.83097282,34299.0,34298.0,8.59672381]
[1625467463104,0.92977282,34299.0,34298.0,8.59672381]
[1625467463205,0.68919738,34299.0,34298.0,8.59672381]
[1625467463308,1.72292741,34299.0,34298.0,8.59672381]
[1625467463859,0.51720471,34299.0,34298.0,10.13494587]
[1625467464157,0.172459,34299.0,34298.0,10.13494587]
[1625467465465,0.51716358,34300.0,34298.0,10.13494587]
[1625467465863,0.51716358,34300.0,34299.0,0.00470686]
[1625467465968,0.51716358,34300.0,34299.0,4.39253219]
[1625467467517,0.51716358,34300.0,34299.0,4.63310763]
[1625467467817,0.51716358,34300.0,34299.0,4.7417458]
[1625467467968,0.34474135,34300.0,34299.0,6.27569395]
[1625467468067,0.17241173,34305.0,34299.0,6.27569395]
[1625467468372,0.51706247,34306.0,34304.0,5.79276534]
[1625467468469,0.51706247,34306.0,34304.0,5.85176534]
[1625467468670,0.51706247,34306.0,34304.0,5.91076534]
[1625467468872,0.51706247,34306.0,34305.0,4.25422836]
[1625467468873,0.17241126,34306.0,34305.0,4.25422836]
[1625467468971,0.17241126,34306.0,34305.0,4.64800836]
[1625467469073,0.17241126,34306.0,34305.0,4.74800836]
[1625467469325,0.51687565,34306.0,34305.0,4.74800836]
[1625467469525,0.51687565,34306.0,34305.0,5.22915924]
[1625467470882,0.37127997,34306.0,34305.0,5.22915924]
[1625467471129,0.34432876,34307.0,34305.0,5.22915924]
[1625467471479,0.34432876,34307.0,34305.0,5.12915924]
[1625467471582,0.34432876,34307.0,34306.0,0.24531685]
[1625467471687,0.34432876,34307.0,34306.0,5.11503448]
[1625467472183,0.34432876,34307.0,34306.0,3.75740087]
[1625467472184,1.20482245,34307.0,34306.0,3.75740087]
[1625467472731,2.2372137,34307.0,34306.0,2.56947146]
[1625467472834,2.2372137,34307.0,34306.0,2.80882146]
[1625467473132,2.2372137,34307.0,34306.0,2.90882146]
[1625467473232,0.34422087,34309.0,34306.0,5.45180575]
[1625467473533,0.34422087,34309.0,34307.0,0.24057544]
[1625467473636,0.34422087,34309.0,34307.0,0.35857544]
[1625467473734,0.34422087,34309.0,34307.0,0.36331677]
[1625467473833,0.34418055,34310.0,34308.0,4.74161904]
[1625467473933,0.34418055,34310.0,34308.0,4.8053603]
[1625467474034,0.34418055,34310.0,34308.0,4.8643603]
[1625467474237,0.34416155,34312.0,34309.0,0.51249148]
[1625467474335,0.34416155,34312.0,34309.0,4.96174652]
[1625467474535,0.34416155,34312.0,34310.0,0.0047407]
[1625467474634,0.34416155,34312.0,34310.0,0.0637407]
[1625467474734,0.19040613,34312.0,34310.0,0.1227407]
[1625467474934,1.37613022,34318.0,34310.0,0.1227407]
[1625467474935,0.34382422,34317.0,34311.0,4.72893659]
[1625467475036,0.34382422,34317.0,34311.0,4.85167714]
[1625467475134,0.34382422,34317.0,34313.0,3.534]
[1625467475235,0.80605126,34318.0,34313.0,3.87195]
[1625467475335,0.80605126,34318.0,34313.0,3.93095]
[1625467475434,0.80605126,34318.0,34316.0,1.67871687]
[1625467475534,0.80605126,34318.0,34317.0,0.48115088]
[1625467475634,0.80605126,34318.0,34317.0,0.54015088]
[1625467475734,0.80605126,34318.0,34317.0,0.59915088]
[1625467475938,0.80605126,34318.0,34317.0,0.60389099]
[1625467476036,0.51557898,34320.0,34317.0,3.30335574]
[1625467476487,0.51557898,34320.0,34318.0,0.00474015]
[1625467476588,0.51557898,34320.0,34319.0,0.50632562]
[1625467476689,0.28617898,34320.0,34319.0,0.50632562]
[1625467476789,0.28617898,34320.0,34319.0,0.62432562]
[1625467476992,0.28617898,34320.0,34319.0,0.62906562]
[1625467477090,0.51511634,34322.0,34319.0,0.62906562]
[1625467477592,0.51511634,34322.0,34321.0,0.48115088]
[1625467477693,0.51511634,34322.0,34321.0,0.82916088]
[1625467477993,0.51511634,34322.0,34321.0,0.8339006]
[1625467478293,0.36960593,34322.0,34321.0,0.8339006]
[1625467478394,1.2016928,34326.0,34321.0,0.8339006]
[1625467478395,1.02998481,34326.0,34321.0,0.8339006]
[1625467478743,1.02998481,34326.0,34321.0,0.82916088]
[1625467478944,1.02897845,34328.0,34321.0,0.82916088]
[1625467479245,1.02897845,34328.0,34325.0,4.9373]
[1625467479344,1.02897845,34328.0,34325.0,0.059]
[1625467479445,1.02897845,34328.0,34325.0,0.118]
[1625467479544,1.02897845,34328.0,34327.0,0.58115088]
[1625467479645,1.02897845,34328.0,34327.0,0.64015088]
[1625467479748,1.02897845,34328.0,34327.0,0.69915088]
[1625467479945,1.02897845,34328.0,34327.0,0.64015088]
[1625467480347,1.02897845,34328.0,34327.0,0.69915088]
[1625467481055,1.02897845,34328.0,34327.0,0.64015088]
[1625467481152,1.02897845,34328.0,34327.0,0.58115088]
[1625467481404,2.22868293,34328.0,34327.0,0.58115088]
[1625467481804,2.22868293,34328.0,34327.0,0.64015088]
[1625467481954,2.22868293,34328.0,34327.0,0.69915088]
[1625467482906,2.22868293,34328.0,34327.0,0.64015088]
[1625467483206,2.22868293,34328.0,34327.0,0.58115088]
[1625467483609,2.46925837,34328.0,34327.0,0.39957544]
[1625467484112,3.83976957,34328.0,34327.0,0.39957544]
[1625467484660,3.83976957,34328.0,34327.0,0.1]
[1625467484762,4.12393957,34328.0,34327.0,0.1]
[1625467485312,5.66589866,34328.0,34327.0,0.1]
[1625467486171,5.72489866,34328.0,34327.0,0.1]
[1625467486271,5.72489866,34328.0,34327.0,0.102]
[1625467486818,5.72489866,34328.0,34327.0,0.002]
[1625467489075,5.81309866,34328.0,34327.0,0.002]
[1625467489876,9.44799866,34328.0,34327.0,0.002]
[1625467490576,5.81309866,34328.0,34327.0,0.002]
[1625467493180,5.87209866,34328.0,34327.0,0.002]
[1625467493381,5.88546969,34328.0,34327.0,0.002]
[1625467493682,5.87209866,34328.0,34327.0,0.002]
[1625467493783,5.87209866,34328.0,34325.0,0.004]
[1625467494333,5.14087439,34326.0,34325.0,0.004]
[1625467494433,5.25887439,34326.0,34325.0,0.004]
[1625467495235,5.25687439,34326.0,34324.0,0.004]
[1625467495836,3.77000458,34325.0,34324.0,0.004]
[1625467495936,4.85030634,34325.0,34324.0,0.004]
[1625467496037,4.73230634,34325.0,34324.0,0.004]
[1625467496339,3.19007068,34325.0,34324.0,0.004]
[1625467498298,3.18807068,34325.0,34324.0,0.004]
[1625467501249,3.18607068,34325.0,34324.0,0.004]
[1625467501651,3.24507068,34325.0,34324.0,0.004]
[1625467501855,3.30407068,34325.0,34324.0,0.004]
[1625467502253,3.55567068,34325.0,34324.0,0.004]
[1625467503057,3.56902996,34325.0,34324.0,0.004]
[1625467503406,3.31742996,34325.0,34324.0,0.004]
[1625467503606,3.18607068,34325.0,34324.0,0.004]
[1625467504208,3.24507068,34325.0,34324.0,0.004]
[1625467504310,3.24307068,34325.0,34324.0,0.004]
[1625467506361,3.18407068,34325.0,34324.0,0.004]
[1625467506763,3.18407068,34325.0,34324.0,0.00874504]
[1625467506861,3.18407068,34325.0,34324.0,0.06774504]
[1625467506962,3.18407068,34325.0,34324.0,0.063]
[1625467507262,3.18407068,34325.0,34324.0,0.06374494]
[1625467510871,4.55603791,34325.0,34324.0,0.06374494]
[1625467511220,3.18407068,34325.0,34324.0,0.06374494]
[1625467511670,4.55603809,34325.0,34324.0,0.06374494]
[1625467513877,3.18407068,34325.0,34324.0,0.06374494]
[1625467515230,4.55731122,34325.0,34324.0,0.06374494]
[1625467518137,4.31673578,34325.0,34324.0,0.06374494]
[1625467521347,4.62813578,34325.0,34324.0,0.06374494]
[1625467522401,6.17526941,34325.0,34324.0,0.06374494]
[1625467523506,6.18863721,34325.0,34324.0,0.06374494]
[1625467525913,6.17526941,34325.0,34324.0,0.06374494]
[1625467526221,6.17526941,34325.0,34324.0,0.30432038]
[1625467526313,4.62813578,34325.0,34324.0,0.30432038]
[1625467526414,4.31673578,34325.0,34324.0,0.30432038]
[1625467528385,4.61414345,34325.0,34324.0,0.30432038]
[1625467528481,4.67314345,34325.0,34324.0,0.00474494]
[1625467529171,6.22306218,34325.0,34324.0,0.00474494]
[1625467531985,6.22306218,34325.0,34324.0,0.06374494]
[1625467536290,6.91256813,34325.0,34324.0,0.06374494]
[1625467542960,6.91256813,34325.0,34324.0,0.00474494]
[1625467543060,6.91256813,34325.0,34324.0,0.06374494]
[1625467543860,6.91256813,34325.0,34324.0,0.00474494]
[1625467543959,6.91256813,34325.0,34324.0,0.06374494]
[1625467545816,8.63750281,34325.0,34324.0,0.06374494]
[1625467546315,8.63750281,34325.0,34324.0,0.00474494]
[1625467548927,12.76610281,34325.0,34324.0,0.00474494]
[1625467551834,12.76610281,34325.0,34319.0,0.92619218]
[1625467551935,0.5,34324.0,34316.0,0.5992679]
[1625467552035,0.559,34324.0,34315.0,0.32628996]
[1625467552137,0.618,34324.0,34306.0,1.69904185]
[1625467552338,0.78582884,34307.0,34306.0,1.69904185]
[1625467552437,1.34482884,34307.0,34306.0,1.65594185]
[1625467552537,1.68112884,34307.0,34303.0,1.5326971]
[1625467552735,4.8775,34306.0,34303.0,1.5326971]
[1625467552837,0.5,34305.0,34303.0,0.40122219]
[1625467552939,0.559,34305.0,34303.0,0.21812219]
[1625467553038,0.118,34305.0,34298.0,1.70202678]
[1625467553155,0.01344478,34304.0,34298.0,1.70202678]
[1625467553239,0.13144478,34304.0,34298.0,1.70202678]
[1625467553351,0.23144478,34304.0,34298.0,1.70202678]
[1625467553449,0.23144478,34304.0,34299.0,0.00471959]
[1625467553642,0.23144478,34304.0,34286.0,0.057]
[1625467553643,0.218,34304.0,34286.0,0.057]
[1625467553742,0.118,34304.0,34284.0,0.9832]
[1625467553945,0.118,34304.0,34287.0,0.00472477]
[1625467554194,0.118,34304.0,34285.0,0.00472487]
[1625467554294,3.5179,34292.0,34285.0,0.00472487]
[1625467554397,0.24057544,34287.0,34286.0,0.24057544]
[1625467554696,0.24057544,34287.0,34286.0,0.24530034]
[1625467555396,0.24057544,34287.0,34286.0,0.34530034]
[1625467555796,0.29957544,34287.0,34286.0,0.34530034]
[1625467557451,0.29957544,34287.0,34286.0,0.34057544]
[1625467559053,0.35857544,34287.0,34286.0,0.1]
[1625467559153,0.60133544,34287.0,34286.0,0.1]
[1625467565574,0.60133544,34287.0,34284.0,0.9832]
[1625467565772,0.54233544,34287.0,34284.0,0.9242]
[1625467565874,0.60133544,34287.0,34284.0,0.9242]
[1625467566423,0.24057544,34285.0,34283.0,7.64]
[1625467566526,0.35857544,34285.0,34283.0,7.64]
[1625467566975,0.35857544,34285.0,34284.0,0.1]
[1625467568478,0.87171869,34285.0,34284.0,0.1]
[1625467570934,0.44410424,34285.0,34284.0,0.1]
[1625467572888,0.35857544,34285.0,34284.0,0.1]
[1625467573194,0.29957544,34285.0,34284.0,0.1]
[1625467573591,0.35857544,34285.0,34284.0,0.1]
[1625467574442,0.29957544,34285.0,34284.0,0.1]
[1625467574742,0.35857544,34285.0,34284.0,0.1]
[1625467574942,0.29957544,34285.0,34284.0,0.1]
[1625467575245,0.35857544,34285.0,34284.0,0.1]
[1625467575453,0.44557544,34285.0,34284.0,0.1]
[1625467575697,0.35857544,34285.0,34284.0,0.1]
[1625467576896,0.65041544,34285.0,34284.0,0.1]
[1625467578406,0.65041544,34285.0,34284.0,0.0127]
[1625467579158,1.16187742,34285.0,34284.0,0.0127]
[1625467579357,1.16187742,34285.0,34283.0,7.64]
[1625467579557,1.16187742,34285.0,34283.0,7.5828]
[1625467580110,0.51148345,34284.0,34283.0,7.5828]
[1625467580208,0.62948345,34284.0,34283.0,7.5828]
[1625467580558,0.87005889,34284.0,34283.0,7.5828]
[1625467583269,0.87005889,34284.0,34283.0,7.5396]
[1625467583621,0.87005889,34284.0,34283.0,5.5397]
[1625467583720,0.87005889,34284.0,34283.0,5.5337]
[1625467583822,0.87005889,34284.0,34283.0,5.5197]
[1625467583823,1.89200841,34284.0,34283.0,5.5197]
[1625467583922,1.89200841,34284.0,34283.0,5.4587]
[1625467584175,1.89200841,34284.0,34283.0,5.4007]
[1625467584271,1.89200841,34284.0,34283.0,5.3527]
[1625467584392,2.39200841,34284.0,34271.0,0.24057544]
[1625467584474,3.9735,34272.0,34266.0,0.057]
[1625467584572,0.48115088,34267.0,34265.0,0.9908]
[1625467584689,0.54015088,34267.0,34265.0,0.9908]
[1625467584795,0.59915088,34267.0,34265.0,0.9908]
[1625467584975,0.59915088,34267.0,34266.0,0.00471395]
[1625467599510,0.118,34267.0,34266.0,0.00471395]
[1625467599709,0.118,34267.0,34265.0,0.9908]
[1625467599809,0.118,34267.0,34266.0,0.00471328]
[1625467600611,0.83972632,34267.0,34266.0,0.00471328]
[1625467601713,0.92792632,34267.0,34266.0,0.00471328]
[1625467602114,0.92792632,34267.0,34266.0,1.328e-05]
[1625467605622,0.0873,34266.0,34265.0,0.93271328]
[1625467605719,0.2053,34266.0,34265.0,0.93271328]
[1625467605919,0.2053,34266.0,34265.0,0.89261328]
[1625467606019,0.2053,34266.0,34265.0,0.89732144]
[1625467606321,0.63243079,34266.0,34265.0,0.89732144]
[1625467606771,0.63243079,34266.0,34265.0,0.72342144]
[1625467607071,0.63243079,34266.0,34265.0,0.71871328]
[1625467607371,0.63243079,34266.0,34265.0,0.69961328]
[1625467607471,0.57343079,34266.0,34265.0,0.53561328]
[1625467607572,0.57343079,34266.0,34265.0,0.44901328]
[1625467607672,0.57343079,34266.0,34252.0,0.24057544]
[1625467607673,2.87869881,34266.0,34252.0,0.24057544]
[1625467607773,2.93769881,34266.0,34252.0,0.24057544]
[1625467608122,2.93769881,34266.0,34253.0,0.00470908]
[1625467608223,0.08561867,34259.0,34253.0,0.00470908]
[1625467608324,0.0862,34258.0,34253.0,0.00470908]
[1625467608425,0.2042,34258.0,34253.0,0.00470908]
[1625467608725,4.77192632,34254.0,34253.0,0.00470908]
[1625467609125,4.77192632,34254.0,34246.0,0.24057544]
[1625467609227,4.77192632,34254.0,34247.0,0.42617926]
[1625467609325,4.77192632,34254.0,34247.0,0.48517926]
[1625467609425,4.77192632,34254.0,34247.0,0.48988858]
[1625467609626,4.77192632,34254.0,34247.0,0.06370932]
[1625467609825,4.86012632,34254.0,34248.0,0.00470375]
[1625467610330,0.08572829,34253.0,34247.0,0.00470382]
[1625467610427,0.08572829,34253.0,34247.0,0.06370382]
[1625467610527,0.14472829,34253.0,34247.0,0.06370382]
[1625467610628,0.14472829,34253.0,34249.0,0.00470376]
[1625467610729,0.24057544,34250.0,34249.0,0.00470376]
[1625467610829,0.61601544,34250.0,34248.0,0.00470383]
[1625467611080,0.61601544,34250.0,34247.0,0.00470381]
[1625467611179,0.61601544,34250.0,34247.0,0.06370381]
[1625467611632,0.61601544,34250.0,34248.0,0.00470386]
[1625467611835,0.70371544,34250.0,34248.0,0.00470386]
[1625467612182,0.70371544,34250.0,34247.0,0.00470394]
[1625467612283,0.70371544,34250.0,34247.0,0.06370394]
[1625467612682,0.24057544,34248.0,34247.0,0.06370394]
[1625467612783,0.29957544,34248.0,34247.0,0.059]
[1625467612990,0.29957544,34248.0,34247.0,0.0637061]
[1625467618405,0.29957544,34248.0,34247.0,0.3864861]
[1625467618551,0.29957544,34248.0,34247.0,0.47212623]
[1625467620008,0.29957544,34248.0,34247.0,0.3864861]
[1625467620507,0.29957544,34248.0,34247.0,0.47211913]
[1625467620606,0.29957544,34248.0,34247.0,0.14933913]
[1625467621559,0.29957544,34248.0,34247.0,0.0637061]
[1625467622359,0.29957544,34248.0,34247.0,0.32079097]
[1625467622709,0.29957544,34248.0,34247.0,0.14940106]
[1625467623815,0.29957544,34248.0,34247.0,0.32076735]
[1625467624867,0.29957544,34248.0,34247.0,0.14940106]
[1625467625617,0.29957544,34248.0,34247.0,0.32079321]
[1625467626019,0.29957544,34248.0,34247.0,0.14940106]
[1625467627719,0.29957544,34248.0,34247.0,0.14469496]